Cogmind - Beta 10.1 @@@ ROGUE MODE // 2020.10.09 @ 23:11:49 Player: King Curtis Result: Destroyed by YI-UF0 with YI-UF0's Doublenader Performance ------------- Evolutions (0) 0 Regions Visited (2) 400 Robots Destroyed (16) 80 Value Destroyed (340) 340 Prototype IDs (0) 0 Alien Tech Used (0) 0 Bonus (0) 0 TOTAL SCORE: 820 Bonus ------- None Cogmind --------- Core Integrity 0/250 Matter 235/300 Energy 75/250 System Corruption 0% Temperature Cool (0) Movement Treading (180) Ox1 Location -10/Mines Parts ------- > --- POWER (1) -------- Ion Engine > --- PROPULSION (2) --- Light Treads > --- UTILITY (2) ------ Large Storage Unit Targeting Computer > --- WEAPON (2) ------- (None) > --- INVENTORY (10) --- Compact Wheel Targeting Computer Peak State ------------ > --- POWER ------------ Ion Engine > --- PROPULSION ------- Wheel Wheel > --- UTILITY ---------- Small Storage Unit Medium Matter Pod > --- WEAPON ----------- EM Pulse Gun Medium Laser > --- INVENTORY -------- Ion Engine Light Treads Compact Wheel Grenade Launcher [Rating: 7] Favorites ----------- Power Ion Engine Engine Ion Engine Propulsion Wheel Treads Light Treads Wheel Wheel Utility Targeting Computer Storage Small Storage Unit Processor Targeting Computer Weapon EM Pulse Gun Energy Gun EM Pulse Gun Launcher Grenade Launcher Build | -11 -10 -10 ------- Run | Scr Mat Min Slots Evolved . | . . . Power . | . . . Propulsion . | . . . Utility . | . . . Weapon . | . . . Parts Attached 18 | 6 7 5 Power 2 | 1 . 1 Engine 2 | 1 . 1 Core . | . . . Reactor . | . . . Propulsion 4 | 2 1 1 Treads 1 | . . 1 Leg . | . . . Wheel 3 | 2 1 . Hover . | . . . Flight . | . . . Utility 4 | 1 3 . Device . | . . . Storage 3 | 1 2 . Processor 1 | . 1 . Hackware . | . . . Protection . | . . . Artifact . | . . . Weapon 8 | 2 3 3 Energy Gun 5 | 2 2 1 Energy Cannon . | . . . Ballistic Gun . | . . . Ballistic Cannon . | . . . Launcher 3 | . 1 2 Special Weapon . | . . . Impact Weapon . | . . . Slashing Weapon . | . . . Piercing Weapon . | . . . Special Melee Weapon . | . . . Unidentified Prototypes . | . . . Parts Lost 8 | . 2 6 Power 1 | . . 1 Propulsion 3 | . 1 2 Utility . | . . . Weapon 4 | . 1 3 Highest Loss Streak 6 | . 1 6 Average Slot Usage (%) 90 | . 90 91 Engine 13 | . 14 12 Wheel 26 | . 27 25 Storage 14 | . 14 14 Processor 8 | . 5 14 Energy Gun 25 | . 26 23 Launcher 1 | . 1 . Naked Turns . | . . . Heaviest Build 26 | 13 25 26 Greatest Support 20 | 20 20 20 Greatest Overweight (x) 1 | . 1 1 Average Overweight (x) . | . . 1 Largest Inventory Capacity 10 | 6 10 10 Average Capacity 7 | 5 7 10 Most Carried 6 | 4 6 5 Average Carried 4 | 2 5 4 Final Capacity 10 | 6 10 10 Final Carried 5 | 4 5 2 Class Distribution -------------------- 100% | Mutant Dominant Class ---------------- Mutant | -10/Materials Mutant | -10/Mines Resources | -11 -10 -10 ----------- Run | Scr Mat Min Matter Collected 420 | 232 163 25 Remotely . | . . . Salvage Created 338 | . 286 52 Parts 25 | . 24 1 Haulers Intercepted 1 | . 1 . Recyclers Shooed . | . . . Parts Field Recycled . | . . . Retrieved Matter . | . . . Parts Self-Destructed . | . . . Prevented . | . . . Kills | -11 -10 -10 ------- Run | Scr Mat Min Combat Hostiles Destroyed 12 | . 10 2 Guns 4 | . 4 . AOE 8 | . 6 2 Classes Destroyed 5 | . 5 . Hauler 1 | . 1 . Operator 1 | . 1 . Watcher 2 | . 2 . Swarmer 6 | . 6 . Grunt 6 | . 4 2 Best Kill Streak 6 | . 6 2 Combat Bots Only 4 | . 4 2 Max Kills in Single Turn 2 | . 2 1 Gunslinging . | . . . Exploded 2 | . 2 1 Melee . | . . . Uniques/NPCs Destroyed . | . . . Combat | -11 -10 -10 -------- Run | Scr Mat Min Damage Taken 715 | . 157 558 Core 259 | . 26 233 Absorbed by Shields . | . . . Core Remaining (%) 100 | 100 . . Volleys Fired 29 | . 21 8 Largest 2 | . 2 2 Hottest 90 | . 90 90 Shots Fired 55 | . 42 13 Gun 41 | . 35 6 Cannon . | . . . Launcher 14 | . 7 7 Special . | . . . Kinetic . | . . . Thermal 15 | . 14 1 Explosive 14 | . 7 7 Electromagnetic 26 | . 21 5 Robot Hit Streak 6 | . 6 6 Robot Miss Streak 2 | . 2 1 Penetration Max . | . . . Secondary Targets 2 | . 2 . Max Gunslinging Chain 1 | . 1 . Shots Hit Robots 31 | . 22 9 Core Hits 24 | . 19 5 Critical Hits . | . . . Critical Kills . | . . . Critical Parts Destroyed . | . . . Melee Attacks . | . . . Impact . | . . . Slashing . | . . . Piercing . | . . . Sneak Attacks . | . . . Combat Hostiles . | . . . Follow-up Attacks . | . . . Damage Inflicted 973 | . 702 271 Guns 321 | . 280 41 Cannons . | . . . Explosions 652 | . 422 230 Melee . | . . . Ramming . | . . . Kinetic . | . . . Thermal 118 | . 118 . Explosive 559 | . 329 230 Electromagnetic 296 | . 255 41 Impact . | . . . Slashing . | . . . Piercing . | . . . Highest Corruption . | . . . Average Corruption . | . . . Corruption Purged . | . . . Overload Shots . | . . . Overflow Damage 26 | . 8 18 Projectiles . | . . . Explosions 26 | . 8 18 Melee . | . . . Knockbacks . | . . . Impact . | . . . Kinetic . | . . . Secondary . | . . . Self-Inflicted Damage 95 | . 33 62 Shots 5 | . 1 4 Rammed . | . . . Targets Rammed . | . . . Kicked . | . . . Crushed . | . . . Highest Temperature 102 | . 102 60 Average Temperature 34 | . 35 27 Received Heat Transfer 51 | . 12 39 Siege Activations . | . . . Robots Corrupted . | . . . Combat Hostiles . | . . . Parts Fried 1 | . 1 . Impact Corruptions . | . . . Robots Melted . | . . . Combat Hostiles . | . . . Parts Melted . | . . . Heat Transferred 124 | . 124 . Parts Sabotaged . | . . . Parts Stolen . | . . . Parts Stripped . | . . . Power Chain Reactions 2 | . 2 . Missiles Intercepted . | . . . Alert | -11 -10 -10 ------- Run | Scr Mat Min Peak Influence 311 | . 311 186 Initial 121 | . . 121 Average 160 | . 179 170 Maximum Alert Level 1 | . 1 . Low Security (%) 66 | 100 46 100 Level 1 33 | . 53 . Level 2 . | . . . Level 3 . | . . . Level 4 . | . . . Level 5 . | . . . High Security . | . . . Max Security . | . . . Squads Dispatched 2 | . 2 . Investigation . | . . . Extermination . | . . . Reinforcement 2 | . 2 . Assault . | . . . Garrison . | . . . Intercept . | . . . Construction Impeded . | . . . Haulers Reinforced . | . . . Stealth | -11 -10 -10 --------- Run | Scr Mat Min Distress Signals . | . . . Communications Jammed . | . . . Distress Signals . | . . . Times Spotted 23 | . 18 5 Peak Tracking Total 3 | . 3 3 Tactical Retreats . | . . . Traps | -11 -10 -10 ------- Run | Scr Mat Min Traps Triggered . | . . . Indirectly . | . . . Trap Hack Attempts . | . . . Triggered . | . . . Disarmed . | . . . Reprogrammed . | . . . Reused . | . . . Traps Extracted . | . . . Installed . | . . . Triggered . | . . . Machines | -11 -10 -10 ---------- Run | Scr Mat Min Machines Disabled . | . . . Max in Single Turn . | . . . Machines Sabotaged . | . . . Garrisons Compromised . | . . . Overloaded Fab Kills . | . . . Fab Network Shutdowns . | . . . Hacking | -11 -10 -10 --------- Run | Scr Mat Min Machines Accessed 5 | . 5 . Terminals 4 | . 4 . Fabricators . | . . . Repair Stations . | . . . Recycling Units 1 | . 1 . Scanalyzers . | . . . Garrison Access . | . . . Total Hacks 8 | . 8 . Successful 1 | . 1 . Failed 7 | . 7 . Catastrophic 1 | . 1 . Database Lockouts . | . . . Manual 7 | . 7 . Terminals 7 | . 7 . Fabricators . | . . . Repair Stations . | . . . Recycling Units 1 | . 1 . Scanalyzers . | . . . Garrison Access . | . . . Terminal Hacks . | . . . Fabricator Hacks . | . . . Repair Station Hacks . | . . . Recycling Unit Hacks 1 | . 1 . Retrieve Components 1 | . 1 . Scanalyzer . | . . . Garrison Access Hacks . | . . . Unauthorized Hacks . | . . . Terminals . | . . . Fabricators . | . . . Repair Stations . | . . . Recycling Units . | . . . Scanalyzers . | . . . Garrison Access . | . . . Data Cores Recovered . | . . . Used . | . . . Hacking Detections 5 | . 5 . Full Trace Events . | . . . Feedback Events . | . . . Feedback Blocked . | . . . Robot Schematics Acquired . | . . . Robots Built . | . . . Matter . | . . . Time . | . . . Total Robot Build Rating . | . . . Part Schematics Acquired . | . . . Parts Built . | . . . Matter . | . . . Time . | . . . Total Part Build Rating . | . . . Parts Repaired . | . . . Time . | . . . Parts Recycled . | . . . Recycled Matter . | . . . Retrieved Matter . | . . . Retrieved Components 3 | . 3 . Parts Scanalyzed . | . . . Part Schematics Acquired . | . . . Parts Damaged . | . . . Bothacking | -11 -10 -10 ------------ Run | Scr Mat Min Used RIF Installer . | . . . Robots Hacked . | . . . Non-combat . | . . . Combat . | . . . Robot Hacks Applied . | . . . Relay Couplers Released . | . . . Robots Rewired . | . . . Allies Hacked . | . . . Hacks Repelled . | . . . Allies | -11 -10 -10 -------- Run | Scr Mat Min Total Allies . | . . . Largest Group . | . . . Highest-Rated Group . | . . . Highest-Rated Ally . | . . . Total Orders . | . . . Ally Attacks . | . . . Total Damage . | . . . Kills . | . . . Allies Corrupted . | . . . Allies Melted . | . . . Intel | -11 -10 -10 ------- Run | Scr Mat Min Robot Analysis Total . | . . . Derelict Logs Recovered . | . . . Drone Launches . | . . . Drone Recoveries . | . . . Exploration | -11 -10 -10 ------------- Run | Scr Mat Min Turns Passed 567 | 53 357 157 Spaces Moved 504 | 45 331 128 Core 1 | 1 . . Treads . | . . . Legs . | . . . Wheels 503 | 44 331 128 Hover . | . . . Flight . | . . . Fastest Speed 50 | 50 80 90 Average Speed 84 | 79 83 90 Slowest Speed 90 | 80 90 90 Overloaded Moves . | . . . Propulsion Burnouts . | . . . Robots Hopped . | . . . Cave-ins Triggered . | . . . Exploration Rate (%) 36 | 4 71 33 Regions Visited 2 Branch Regions 1 Pre-discovered Areas 1 | . . 1 Known Exits Taken . | . . . Unknown Exits Taken 2 | 1 1 . Scrap Searched . | . . . Spaces Dug . | . . . Terrain Destroyed 75 | . 30 45 Melee . | . . . Projectile . | . . . AOE 75 | . 30 45 Terrain Rammed . | . . . Walls Destroyed . | . . . Machines Disabled . | . . . Actions | -11 -10 -10 --------- Run | Scr Mat Min Total 583 | 60 368 155 Wait 18 | 2 2 14 Move 502 | 44 330 128 Hop . | . . . Pick Up 11 | 6 5 . Fast Attach 8 | 6 2 . Attach 5 | . 2 3 Detach . | . . . Swap 5 | . 3 2 Drop 5 | 2 3 . Fire 29 | . 21 8 Melee . | . . . Ram . | . . . Kick . | . . . Crush . | . . . Escape Stasis . | . . . Rewire . | . . . Trap . | . . . Miscellaneous . | . . . Route ------- -11/Scrapyard -10/Materials (discovered 2 exits: [*Mat] / [*Min]) -10/Mines (discovered 1 exit: [*Mat]) History --------- Turn | Location | Event 9 | -11/Scrapyard | Discovered new exit (range 15) 54 | -11/Scrapyard | Entered Materials 292 | -10/Materials | Discovered new exit (range 16) 308 | -10/Materials | Build established: Mutant 396 | -10/Materials | Discovered new exit (range 12) 411 | -10/Materials | Entered Mines 438 | -10/Mines | Learned location of Storage (-8) 523 | -10/Mines | Discovered new exit (range 10) 533 | -10/Mines | YI-UF0 nonchalantly dropped a Grenade Launcher on the ground 557 | -10/Mines | Core integrity fell below 50% 565 | -10/Mines | Core integrity fell below 20% 568 | -10/Mines | Destroyed by YI-UF0 with YI-UF0's Doublenader Last Messages --------------- 00546_ Grenade Launcher destroyed. 00546_ Destroyed Grenade Launcher. 00547_ The unstable cave ceiling collapses. 00550_ Acquired 1 matter. 00552_ U-05 Engineer lays Concrete. 00552_ YI-UF0: "BADABOOM!" 00552_ T-07 Excavator destroyed. 00553_ The unstable cave ceiling collapses. 00553_ U-05 Engineer lays Concrete. 00554_ The unstable cave ceiling collapses. 00554_ U-05 Engineer lays Concrete. 00555_ The unstable cave ceiling collapses. 00555_ U-05 Engineer lays Concrete. 00556_ The unstable cave ceiling collapses. 00556_ U-05 Engineer lays Concrete. 00556_ Wheel destroyed. 00557_ U-05 Engineer lays Concrete. 00558_ R-06 Scavenger collects Wheel. 00559_ U-05 Engineer lays Concrete. 00562_ The unstable cave ceiling collapses. Map ----- +----------------------------------------------------+ | ?????????????????????????????????????????????????? | | ?????????????????????????????????????????????????? | | ?????????????????????????????????????????????????? | | ?????????????????????????????????????????????????? | | ?????????????????????????????????????????????????? | | ?????????????????????????????????????????????????? | | ?????????????????????????????????????????????????? | | ?????????????????????????????????????????????????? | | ???????????????????????? ???????????????????? | | ??????????????????????## [ ?????????????????? | | ??????????????????????# ???????????????? | | ??????????????????????# r ?? ????????????? | | ??????????????????????# ?? ??????????? | | ??????????????????????? #?? ??????????? | | ??????????????????????? # ##? ?????????? | | ????????????? ?????????# # ## #??????????? | | ???????????? ???????## #??????????? | | ???????????? ??????# ???????????? | | ??????????? ?????? < ????????????? | | ???????????? ###??# #????????????? | | ???????????? ### #????????????? | | ?????????????? # #? #????????????? | | ?????????????????# #?# #????????????? | | ?????????????????## ### #?????####???# | | ?????????????????# ## ####?# ### | | ??????????????????# @g ## ## | | ??????????????????## ur | | ?????????????????# ##### | | ?????????????????# #???### | | ?????????????????# ##?????## ##? | | ????????????????# ##???????# """ #####?? | | ????????????????# ##???????## """ ###???? | | ????????????????# #????##### """ ##??? | | ????????????????# ##???## #??? | | ???????????????? ????## #?? | | ??????????????? ###????# ## #? | | ?????????????? #???????# ##?## # | | ??????????????? ????????# ######????# ### | | ????????????????? ????????# #??????????####?? | | ???????????????????? ?????????# #???????????????# | | ???????????????????????????#### #??????????????## | | ???????????????????????????# #?????????????## | | ???????????????????????????# #####?????????????# | | ???????????????????????????# ##????????????????# | | ??????????????????????????## ##???????????????## | | ??????????????????????????# ##???????????????## | | ??????????????????????????# ##??????????????## | | ??????????????????????????# #??###????????## | | ??????????????????????????## #??# ##?????## | | ???????????????????????????## #??# ##???## | +----------------------------------------------------+ Best States ------------- Heat Dissipation 25 Energy Generation 10 Energy Capacity 250 Matter Stores 300 Matter Capacity 300 Sight Range 16 Terrain Scan Density 10 Evasion (%) 44 Targeting Accuracy 5 Item Schematics ----------------- None Robot Schematics ------------------ None Fabricated ------------ Nothing Alien Tech Used ----------------- None Achievements -------------- None Challenges ------------ None Game ------ Seed CloakHypervelocityDriver Manual? 0 Play Time 00:12:09 Cumulative 35.4 hours Start 2020.10.09 @ 23:01:41 End 2020.10.09 @ 23:11:49 Sessions 1 Manual Loads 0 Difficulty Rogue Special Mode None Game No. 12 Rogue 7 Adventurer 0 Explorer 5 Win Type - Total 1 Types 0/0/0/1/0/0/0/0/0 Lore% 33 Gallery% 37 Achievement% 33 Wizard Run 0 Options --------- ASCII 0 Keyboard 0 Movement Mouse Keybinds 0 Fullscreen 0 Font 24/Smallcaps Map View 76x50 Tactical HUD 1 Map Filters NONE Filters NONE Steam 1 RUN: f2395d21-8b42-484d-9875-5ff1df5e01b6